[Event "Austria Championship Blitz 2024"]
[Site "Innsbruck"]
[Date "2024.06.01"]
[Round "7.5"]
[White "Hengl, Philip"]
[Black "Wohlfahrt, Herbert"]
[Result "0-1"]
[ECO "B62"]
[WhiteElo "2173"]
[BlackElo "2328"]
[Annotator "RC"]
[PlyCount "106"]
[EventDate "2024.06.01"]
[EventType "swiss"]
[EventCountry "AUT"]
[SourceTitle "playchess.com"]
[Source "ChessBase"]
[SourceQuality "1"]
[TimeControl "180+2"]

1. e4 {[%emt 0:00:02]} c5 {[%emt 0:00:00]} 2. Nc3 {[%emt 0:00:00]} Nc6 {[%emt 0:00:01]} 3. Nf3 {[%emt 0:00:02]} d6 {[%emt 0:00:07]} 4. d4 {[%emt 0:00:01]} cxd4 {[%emt 0:00:01]} 5. Nxd4 {[%emt 0:00:01]} Nf6 {[%emt 0:00:01]} 6. Bg5 {[%emt 0:00:06]} e6 {[%emt 0:00:01]} 7. Qd3 {[%emt 0:00:07]} Be7 {[%emt 0:00:11]} 8. O-O-O {[%emt 0:00:01]} a6 {[%emt 0:00:08]} 9. Kb1 {[%emt 0:00:06]} Nxd4 {[%emt 0:00:10]} 10. Qxd4 {[%emt 0:00:01]} Qa5 {[%emt 0:00:03]} 11. Bc1 {[%emt 0:00:23]} e5 {[%emt 0:00:14]} 12. Qe3 {[%emt 0:00:15]} Be6 {[%emt 0:00:03]} 13. f3 {[%emt 0:00:03]} Rc8 {[%emt 0:00:02]} 14. a3 {[%emt 0:02:22]} b5 {[%emt 0:00:07]} 15. Bd2 {[%emt 0:00:00]} Qc7 {[%emt 0:00:08]} 16. Rc1 {[%emt 0:00:00]} O-O {[%emt 0:00:02]} 17. g4 {[%emt 0:00:00]} Nd7 {[%emt 0:00:08]} 18. h4 {[%emt 0:00:00]} Nb6 {[%emt 0:00:03]} 19. Na2 {[%emt 0:00:00]} d5 {[%emt 0:00:10]} 20. Ba5 {[%emt 0:00:00]} d4 {[%emt 0:00:05]} 21. Qd2 {[%emt 0:00:00]} Nc4 {[%emt 0:00:26]} 22. Bxc4 {[%emt 0:00:00]} Qxc4 {[%emt 0:00:01]} 23. b3 {[%emt 0:00:00]} Qc6 {[%emt 0:00:07]} 24. Nb4 {[%emt 0:00:00]} Qb7 {[%emt 0:00:01]} 25. Kb2 {[%emt 0:00:00]} Rc3 {[%emt 0:00:08]} 26. Nd3 {[%emt 0:00:00]} Rc6 {[%emt 0:00:02]} 27. g5 {[%emt 0:00:00]} Rfc8 {[%emt 0:00:10]} 28. h5 {[%emt 0:00:00]} Bf8 {[%emt 0:00:13]} 29. g6 {[%emt 0:00:00]} fxg6 {[%emt 0:00:02]} 30. hxg6 {[%emt 0:00:00]} h6 {[%emt 0:00:00]} 31. Nxe5 {[%emt 0:00:00]} Rc3 {[%emt 0:00:14]} 32. Qxd4 {[%emt 0:00:00]} R3c5 {[%emt 0:00:10]} 33. f4 {[%emt 0:00:00]} Re8 {[%emt 0:00:19]} 34. Nd3 {[%emt 0:00:12]} Rcc8 {[%emt 0:00:03]} 35. f5 {[%emt 0:00:30]} Bd7 {[%emt 0:00:00]} 36. Rce1 {[%emt 0:00:00]} Bc6 {[%emt 0:00:01]} 37. f6 {[%emt 0:00:00]} gxf6 {[%emt 0:00:05]} 38. g7 {[%emt 0:00:00]} Bxg7 {[%emt 0:00:02]} 39. Rhg1 {[%emt 0:00:00]} Kh8 {[%emt 0:00:03]} 40. Bc3 {[%emt 0:00:02]} Qf7 {[%emt 0:00:07]} 41. Nf4 {[%emt 0:00:04]} Rcd8 {[%emt 0:00:03]} 42. Qc5 {[%emt 0:00:04]} Bxe4 {[%emt 0:00:05]} 43. Nh5 {[%emt 0:00:01]} Rd5 {[%emt 0:00:05]} 44. Qe3 {[%emt 0:00:01]} Rxh5 {[%emt 0:00:01]} 45. Qf4 {[%emt 0:00:03]} Rg5 {[%emt 0:00:05]} 46. Rxe4 {[%emt 0:00:01]} Rxg1 {[%emt 0:00:03]} 47. Rxe8+ {[%emt 0:00:02]} Qxe8 {[%emt 0:00:01]} 48. Bxf6 {[%emt 0:00:05]} Bxf6+ {[%emt 0:00:01]} 49. Qxf6+ {[%emt 0:00:01]} Rg7 {[%emt 0:00:01]} 50. Qxh6+ {[%emt 0:00:01]} Kg8 {[%emt 0:00:00]} 51. Qxa6 {[%emt 0:00:01]} Qe5+ {[%emt 0:00:01]} 52. Ka2 {[%emt 0:00:01]} Rg3 {[%emt 0:00:03]} 53. Qxb5 {[%emt 0:00:03]} Qxb5 {[%emt 0:00:02]} 0-1

[Event "Austria Championship Blitz 2024"]
[Site "Innsbruck"]
[Date "2024.06.01"]
[Round "7.6"]
[White "Kienboeck, Benjamin"]
[Black "Kilgus, Georg"]
[Result "1-0"]
[ECO "C70"]
[WhiteElo "2187"]
[BlackElo "2362"]
[Annotator "RC"]
[PlyCount "80"]
[EventDate "2024.06.01"]
[EventType "swiss"]
[EventCountry "AUT"]
[SourceTitle "playchess.com"]
[Source "ChessBase"]
[SourceQuality "1"]
[TimeControl "180+2"]

1. e4 {[%emt 0:00:02]} e5 {[%emt 0:00:00]} 2. Nf3 {[%emt 0:00:01]} Nc6 {[%emt 0:00:01]} 3. Bb5 {[%emt 0:03:05]} a6 4. Ba4 {[%emt 0:00:02]} g6 5. d4 {[%emt 0:00:00]} exd4 {[%emt 0:00:02]} 6. Nxd4 {[%emt 0:00:00]} Bg7 {[%emt 0:00:15]} 7. Be3 {[%emt 0:00:00]} Nf6 {[%emt 0:00:09]} 8. f3 {[%emt 0:00:00]} O-O {[%emt 0:00:04]} 9. Nc3 {[%emt 0:00:00]} Ne5 {[%emt 0:00:24]} 10. Nde2 {[%emt 0:00:00]} Nc4 {[%emt 0:00:57]} 11. Qc1 {[%emt 0:00:00]} d5 {[%emt 0:00:32]} 12. Bg5 {[%emt 0:00:00]} dxe4 {[%emt 0:00:37]} 13. Nxe4 {[%emt 0:00:00]} Bf5 {[%emt 0:00:01]} 14. N2g3 {[%emt 0:00:00]} Bxe4 {[%emt 0:00:17]} 15. Nxe4 {[%emt 0:00:00]} Qd4 {[%emt 0:00:05]} 16. c3 {[%emt 0:00:24]} Qb6 17. Bxf6 {[%emt 0:00:00]} Bxf6 {[%emt 0:00:01]} 18. Bb3 {[%emt 0:00:00]} Ne5 {[%emt 0:00:04]} 19. Nxf6+ {[%emt 0:00:00]} Qxf6 {[%emt 0:00:01]} 20. O-O {[%emt 0:00:00]} Rad8 {[%emt 0:00:00]} 21. Qc2 {[%emt 0:00:00]} Rd6 {[%emt 0:00:04]} 22. Rad1 {[%emt 0:00:00]} Rfd8 {[%emt 0:00:01]} 23. Kh1 {[%emt 0:00:00]} b5 {[%emt 0:00:03]} 24. a4 {[%emt 0:00:00]} Kg7 {[%emt 0:00:01]} 25. axb5 {[%emt 0:00:01]} axb5 {[%emt 0:00:00]} 26. Rxd6 {[%emt 0:00:05]} Rxd6 {[%emt 0:00:01]} 27. Rd1 {[%emt 0:00:03]} c5 {[%emt 0:00:01]} 28. Bd5 {[%emt 0:00:03]} c4 {[%emt 0:00:02]} 29. Be4 {[%emt 0:00:03]} h5 {[%emt 0:00:04]} 30. Kg1 {[%emt 0:00:02]} Qd8 {[%emt 0:00:02]} 31. Rxd6 Qxd6 {[%emt 0:00:00]} 32. Kf1 {[%emt 0:00:05]} f5 {[%emt 0:00:04]} 33. Bb7 {[%emt 0:00:07]} Qb6 {[%emt 0:00:03]} 34. Qe2 {[%emt 0:00:04]} Nd3 {[%emt 0:00:04]} 35. Qe7+ {[%emt 0:00:01]} Kh6 {[%emt 0:00:01]} 36. Qf8+ {[%emt 0:00:01]} Kg5 {[%emt 0:00:05]} 37. Qe7+ {[%emt 0:00:00]} Kh6 {[%emt 0:00:06]} 38. Qf8+ {[%emt 0:00:01]} Kg5 {[%emt 0:00:01]} 39. Qe7+ {[%emt 0:00:01]} Kh6 {[%emt 0:00:07]} 40. Qf8+ Kg5 {[%emt 0:00:02]} 1-0

[Event "Austria Championship Blitz 2024"]
[Site "Innsbruck"]
[Date "2024.06.01"]
[Round "7.7"]
[White "Schnegg, Daniel"]
[Black "Gschiel, Alexander"]
[Result "1-0"]
[ECO "A02"]
[WhiteElo "2115"]
[BlackElo "2355"]
[Annotator "RC"]
[PlyCount "98"]
[EventDate "2024.06.01"]
[EventType "swiss"]
[EventCountry "AUT"]
[SourceTitle "playchess.com"]
[Source "ChessBase"]
[SourceQuality "1"]
[TimeControl "180+2"]

1. f4 {[%emt 0:00:04]} Nh6 {[%emt 0:00:03]} 2. b3 {[%emt 0:00:01]} d6 {[%emt 0:00:21]} 3. e3 {[%emt 0:00:04]} e5 {[%emt 0:00:02]} 4. Nf3 {[%emt 0:00:10]} Bg4 {[%emt 0:00:05]} 5. Be2 {[%emt 0:00:03]} exf4 {[%emt 0:00:11]} 6. exf4 {[%emt 0:00:03]} Be7 {[%emt 0:00:01]} 7. Bb2 {[%emt 0:00:02]} Bf6 {[%emt 0:00:01]} 8. Nc3 {[%emt 0:00:07]} O-O {[%emt 0:00:03]} 9. O-O {[%emt 0:00:03]} Nc6 {[%emt 0:00:03]} 10. h3 {[%emt 0:00:09]} Bxf3 {[%emt 0:00:12]} 11. Bxf3 {[%emt 0:00:01]} Nf5 {[%emt 0:00:01]} 12. Qc1 {[%emt 0:00:12]} Nfd4 {[%emt 0:00:07]} 13. Nd5 {[%emt 0:00:08]} Nxf3+ {[%emt 0:00:19]} 14. Rxf3 {[%emt 0:00:02]} Bd4+ {[%emt 0:00:06]} 15. Kh1 {[%emt 0:00:07]} Re8 {[%emt 0:00:07]} 16. Rd3 {[%emt 0:00:08]} Bxb2 {[%emt 0:00:15]} 17. Qxb2 {[%emt 0:00:01]} Qh4 {[%emt 0:00:01]} 18. Nxc7 {[%emt 0:00:06]} Re1+ {[%emt 0:00:06]} 19. Rxe1 {[%emt 0:00:03]} Qxe1+ {[%emt 0:00:01]} 20. Kh2 {[%emt 0:00:01]} Rc8 {[%emt 0:00:02]} 21. Rg3 {[%emt 0:00:10]} f6 {[%emt 0:00:25]} 22. Nd5 {[%emt 0:00:10]} Kf7 {[%emt 0:00:04]} 23. Qc3 {[%emt 0:00:11]} Re8 {[%emt 0:00:09]} 24. Qc4 {[%emt 0:00:07]} Kf8 {[%emt 0:00:09]} 25. Qd3 {[%emt 0:00:25]} Qe4 {[%emt 0:00:14]} 26. Re3 {[%emt 0:00:09]} Qxd3 {[%emt 0:00:04]} 27. Rxd3 {[%emt 0:01:09]} Re2 {[%emt 0:00:06]} 28. Nc3 {[%emt 0:00:00]} Re1 {[%emt 0:00:09]} 29. Rxd6 {[%emt 0:00:00]} Ke7 {[%emt 0:00:01]} 30. Rd3 {[%emt 0:00:00]} Ke6 {[%emt 0:00:07]} 31. Re3+ {[%emt 0:00:00]} Rxe3 {[%emt 0:00:02]} 32. dxe3 Nb4 {[%emt 0:00:01]} 33. Nb5 {[%emt 0:00:00]} Nxc2 {[%emt 0:00:02]} 34. e4 {[%emt 0:00:00]} a6 {[%emt 0:00:03]} 35. Nc3 {[%emt 0:00:00]} b5 {[%emt 0:00:05]} 36. Kg3 {[%emt 0:00:00]} Nd4 {[%emt 0:00:07]} 37. Kf2 {[%emt 0:00:00]} f5 {[%emt 0:00:05]} 38. e5 {[%emt 0:00:00]} h6 {[%emt 0:00:02]} 39. Ke3 {[%emt 0:00:00]} Nc6 {[%emt 0:00:02]} 40. a4 {[%emt 0:00:00]} b4 {[%emt 0:00:02]} 41. Ne2 {[%emt 0:00:28]} Kd5 {[%emt 0:00:03]} 42. Kd3 {[%emt 0:00:00]} g5 {[%emt 0:00:03]} 43. g3 {[%emt 0:00:00]} Nd8 {[%emt 0:00:02]} 44. Nd4 {[%emt 0:00:00]} Nb7 {[%emt 0:00:05]} 45. Nxf5 {[%emt 0:00:00]} Nc5+ {[%emt 0:00:02]} 46. Kc2 {[%emt 0:00:00]} gxf4 {[%emt 0:00:01]} 47. gxf4 {[%emt 0:00:00]} Ke4 {[%emt 0:00:01]} 48. Ng7 {[%emt 0:00:00]} Kxf4 {[%emt 0:00:11]} 49. e6 {[%emt 0:00:00]} Kg3 {[%emt 0:00:06]} 1-0

[Event "Austria Championship Blitz 2024"]
[Site "Innsbruck"]
[Date "2024.06.01"]
[Round "7.8"]
[White "Vrban, Damir"]
[Black "Binder, Moriz"]
[Result "0-1"]
[ECO "C38"]
[WhiteElo "2151"]
[BlackElo "2210"]
[Annotator "RC"]
[PlyCount "37"]
[EventDate "2024.06.01"]
[EventType "swiss"]
[EventCountry "AUT"]
[SourceTitle "playchess.com"]
[Source "ChessBase"]
[SourceQuality "1"]
[TimeControl "180+2"]

1. e4 {[%emt 0:00:02]} e5 {[%emt 0:00:01]} 2. f4 {[%emt 0:00:04]} exf4 {[%emt 0:00:01]} 3. Bc4 {[%emt 0:00:01]} Nc6 {[%emt 0:00:01]} 4. Nf3 {[%emt 0:00:04]} g5 {[%emt 0:00:08]} 5. d4 {[%emt 0:00:32]} Bg7 {[%emt 0:00:02]} 6. c3 {[%emt 0:00:22]} d6 {[%emt 0:00:02]} 7. O-O {[%emt 0:00:18]} h6 {[%emt 0:00:01]} 8. g3 {[%emt 0:00:20]} Bh3 {[%emt 0:00:08]} 9. Rf2 {[%emt 0:00:04]} Qd7 {[%emt 0:00:03]} 10. Nbd2 {[%emt 0:00:25]} Nf6 {[%emt 0:00:19]} 11. d5 {[%emt 0:00:33]} Ne5 {[%emt 0:00:06]} 12. Nxe5 {[%emt 0:00:02]} dxe5 {[%emt 0:00:02]} 13. Be2 {[%emt 0:00:14]} O-O {[%emt 0:00:16]} 14. Qc2 {[%emt 0:00:08]} Rfe8 {[%emt 0:00:15]} 15. Qd3 {[%emt 0:00:05]} Bg4 {[%emt 0:00:09]} 16. Nf3 {[%emt 0:00:05]} Bf8 {[%emt 0:00:13]} 17. b4 {[%emt 0:00:05]} a5 {[%emt 0:00:02]} 18. Bd2 {[%emt 0:00:03]} c6 {[%emt 0:00:43]} 19. dxc6 {[%emt 0:00:13]} 0-1

[Event "Austria Championship Blitz 2024"]
[Site "Innsbruck"]
[Date "2024.06.01"]
[Round "7.9"]
[White "Blaas, Hansjoerg"]
[Black "Horvath, Reka"]
[Result "1-0"]
[ECO "B71"]
[WhiteElo "2222"]
[BlackElo "2009"]
[Annotator "RC"]
[PlyCount "85"]
[EventDate "2024.06.01"]
[EventType "swiss"]
[EventCountry "AUT"]
[SourceTitle "playchess.com"]
[Source "ChessBase"]
[SourceQuality "1"]
[TimeControl "180+2"]

1. e4 {[%emt 0:00:00]} c5 {[%emt 0:00:01]} 2. Nf3 {[%emt 0:03:06]} d6 3. d4 {[%emt 0:00:00]} cxd4 4. Nxd4 {[%emt 0:00:00]} Nf6 {[%emt 0:00:03]} 5. Nc3 {[%emt 0:00:00]} g6 {[%emt 0:00:00]} 6. f4 {[%emt 0:00:00]} Nc6 {[%emt 0:00:01]} 7. Nxc6 {[%emt 0:00:00]} bxc6 {[%emt 0:00:02]} 8. e5 {[%emt 0:00:00]} Ng4 {[%emt 0:00:09]} 9. Be2 {[%emt 0:00:00]} Nh6 {[%emt 0:00:07]} 10. O-O {[%emt 0:00:00]} Qb6+ {[%emt 0:00:11]} 11. Kh1 {[%emt 0:00:00]} Nf5 {[%emt 0:00:01]} 12. Bf3 {[%emt 0:00:00]} Bd7 {[%emt 0:00:06]} 13. Ne4 {[%emt 0:00:00]} d5 {[%emt 0:00:05]} 14. Nc3 {[%emt 0:00:00]} Qd4 {[%emt 0:00:21]} 15. Qe2 {[%emt 0:00:00]} Bh6 {[%emt 0:00:06]} 16. g3 {[%emt 0:00:00]} Qb4 {[%emt 0:00:12]} 17. a3 {[%emt 0:00:00]} Qb6 {[%emt 0:00:01]} 18. b4 {[%emt 0:00:00]} Nd4 {[%emt 0:00:09]} 19. Qf2 {[%emt 0:00:00]} Nxf3 {[%emt 0:00:01]} 20. Qxf3 {[%emt 0:00:00]} O-O {[%emt 0:02:06]} 21. Na4 Qa6 {[%emt 0:00:00]} 22. Nc5 {[%emt 0:00:00]} Qc8 {[%emt 0:00:00]} 23. Bb2 {[%emt 0:00:00]} Bg4 {[%emt 0:00:00]} 24. Qe3 {[%emt 0:00:00]} Bh3 {[%emt 0:00:00]} 25. Rf2 {[%emt 0:00:00]} a5 {[%emt 0:00:00]} 26. c3 {[%emt 0:00:00]} axb4 {[%emt 0:00:00]} 27. cxb4 {[%emt 0:00:00]} Rd8 {[%emt 0:00:00]} 28. Re1 {[%emt 0:00:00]} Bf8 {[%emt 0:00:00]} 29. e6 {[%emt 0:00:00]} Bxe6 {[%emt 0:00:00]} 30. Nxe6 {[%emt 0:00:00]} Qxe6 {[%emt 0:00:00]} 31. Qxe6 {[%emt 0:00:00]} fxe6 {[%emt 0:00:00]} 32. Rxe6 {[%emt 0:00:00]} Kf7 {[%emt 0:00:00]} 33. Rxc6 {[%emt 0:00:00]} d4 {[%emt 0:00:00]} 34. Rd2 {[%emt 0:00:00]} Bg7 {[%emt 0:00:00]} 35. Rc4 {[%emt 0:00:00]} e5 {[%emt 0:00:00]} 36. fxe5 Bxe5 {[%emt 0:00:00]} 37. Kg2 {[%emt 0:00:00]} Re8 {[%emt 0:00:00]} 38. Bxd4 {[%emt 0:00:01]} Rxa3 {[%emt 0:00:00]} 39. Rf2+ {[%emt 0:00:04]} Kg7 {[%emt 0:00:00]} 40. Re2 {[%emt 0:00:02]} Kf6 {[%emt 0:00:09]} 41. Rc6+ {[%emt 0:00:02]} Kf5 {[%emt 0:00:04]} 42. Rc5 {[%emt 0:00:02]} Ra2 {[%emt 0:00:11]} 43. Rxa2 {[%emt 0:01:11]} 1-0

[Event "Austria Championship Blitz 2024"]
[Site "Innsbruck"]
[Date "2024.06.01"]
[Round "7.10"]
[White "Mira, Helene"]
[Black "Myagmarsuren, Mandukhai"]
[Result "0-1"]
[ECO "D47"]
[WhiteElo "2047"]
[BlackElo "2092"]
[Annotator "RC"]
[PlyCount "46"]
[EventDate "2024.06.01"]
[EventType "swiss"]
[EventCountry "AUT"]
[SourceTitle "playchess.com"]
[Source "ChessBase"]
[SourceQuality "1"]
[TimeControl "180+2"]

1. d4 {[%emt 0:00:03]} d5 {[%emt 0:00:01]} 2. c4 {[%emt 0:00:01]} c6 {[%emt 0:00:02]} 3. Nf3 {[%emt 0:00:01]} Nf6 {[%emt 0:00:02]} 4. Nc3 {[%emt 0:00:01]} e6 {[%emt 0:00:01]} 5. e3 {[%emt 0:00:01]} Nbd7 {[%emt 0:00:01]} 6. Bd3 {[%emt 0:00:02]} dxc4 {[%emt 0:00:02]} 7. Bxc4 {[%emt 0:00:01]} b5 {[%emt 0:00:01]} 8. Bd3 {[%emt 0:00:02]} Bd6 {[%emt 0:00:02]} 9. e4 {[%emt 0:00:05]} e5 {[%emt 0:00:01]} 10. d5 {[%emt 0:00:03]} cxd5 {[%emt 0:00:02]} 11. Nxb5 {[%emt 0:00:03]} Bb8 {[%emt 0:00:02]} 12. exd5 {[%emt 0:00:12]} Nxd5 {[%emt 0:00:02]} 13. O-O {[%emt 0:00:06]} Nc5 {[%emt 0:00:32]} 14. Bc4 {[%emt 0:00:21]} Bb7 {[%emt 0:00:08]} 15. Re1 {[%emt 0:00:43]} e4 {[%emt 0:00:57]} 16. Ng5 {[%emt 0:00:06]} O-O {[%emt 0:00:45]} 17. Nxe4 {[%emt 0:00:55]} Nxe4 {[%emt 0:00:01]} 18. Rxe4 {[%emt 0:00:02]} Nb6 {[%emt 0:00:02]} 19. Rd4 {[%emt 0:00:11]} Qf6 {[%emt 0:00:16]} 20. Nd6 {[%emt 0:00:30]} Bxd6 {[%emt 0:00:08]} 21. Rxd6 {[%emt 0:00:01]} Rad8 {[%emt 0:00:14]} 22. Rxd8 {[%emt 0:00:10]} Rxd8 {[%emt 0:00:02]} 23. Qc2 {[%emt 0:00:05]} Nxc4 {[%emt 0:00:02]} 0-1

[Event "Austria Championship Blitz 2024"]
[Site "Innsbruck"]
[Date "2024.06.01"]
[Round "7.11"]
[White "Leonov, Leonid"]
[Black "Wetscher, Wolfgang"]
[Result "0-1"]
[ECO "B12"]
[WhiteElo "1739"]
[BlackElo "1937"]
[Annotator "RC"]
[PlyCount "147"]
[EventDate "2024.06.01"]
[EventType "swiss"]
[EventCountry "AUT"]
[SourceTitle "playchess.com"]
[Source "ChessBase"]
[SourceQuality "1"]
[TimeControl "180+2"]

1. d4 {[%emt 0:00:01]} c6 {[%emt 0:00:01]} 2. e4 {[%emt 0:00:02]} Qc7 {[%emt 0:00:00]} 3. Nc3 {[%emt 0:00:04]} d6 {[%emt 0:00:01]} 4. f4 {[%emt 0:03:03]} e5 5. Nf3 {[%emt 0:00:00]} Nf6 {[%emt 0:00:01]} 6. Be2 {[%emt 0:00:00]} Be7 {[%emt 0:00:01]} 7. O-O {[%emt 0:00:00]} Nbd7 {[%emt 0:00:01]} 8. a4 {[%emt 0:00:00]} O-O {[%emt 0:00:03]} 9. fxe5 {[%emt 0:00:00]} dxe5 {[%emt 0:00:01]} 10. d5 {[%emt 0:00:00]} Bc5+ {[%emt 0:00:16]} 11. Kh1 {[%emt 0:00:00]} Ng4 {[%emt 0:00:04]} 12. Qe1 {[%emt 0:00:00]} a5 {[%emt 0:00:04]} 13. Qh4 {[%emt 0:00:00]} Ndf6 {[%emt 0:00:16]} 14. h3 {[%emt 0:00:00]} Ne3 {[%emt 0:00:14]} 15. Bxe3 {[%emt 0:00:00]} Bxe3 {[%emt 0:00:00]} 16. Ng5 {[%emt 0:00:00]} Bxg5 {[%emt 0:00:26]} 17. Qxg5 {[%emt 0:00:00]} Ne8 {[%emt 0:00:09]} 18. Rf2 {[%emt 0:00:28]} f6 {[%emt 0:00:05]} 19. Qg3 {[%emt 0:00:00]} Qe7 {[%emt 0:00:15]} 20. Bc4 {[%emt 0:00:00]} Kh8 {[%emt 0:00:02]} 21. dxc6 {[%emt 0:00:00]} bxc6 {[%emt 0:00:01]} 22. Qf3 {[%emt 0:00:00]} Nd6 {[%emt 0:00:08]} 23. Bb3 {[%emt 0:00:00]} Be6 {[%emt 0:00:01]} 24. Bxe6 {[%emt 0:00:12]} Qxe6 {[%emt 0:00:02]} 25. Rd1 {[%emt 0:00:00]} Rad8 {[%emt 0:00:01]} 26. Rfd2 {[%emt 0:00:00]} Nf7 {[%emt 0:00:14]} 27. h4 {[%emt 0:00:00]} Qe7 {[%emt 0:00:02]} 28. Ne2 {[%emt 0:00:00]} Rxd2 {[%emt 0:00:07]} 29. Rxd2 {[%emt 0:00:00]} Rd8 {[%emt 0:00:01]} 30. Rxd8+ {[%emt 0:00:00]} Qxd8 {[%emt 0:00:03]} 31. Qd3 {[%emt 0:00:00]} Kg8 {[%emt 0:00:12]} 32. Kg1 {[%emt 0:00:00]} Kf8 {[%emt 0:00:05]} 33. Kf2 {[%emt 0:00:00]} Ke7 {[%emt 0:00:03]} 34. Ng3 {[%emt 0:00:00]} g6 {[%emt 0:00:04]} 35. Qa3+ {[%emt 0:00:00]} Qd6 {[%emt 0:00:03]} 36. Qxd6+ {[%emt 0:00:00]} Kxd6 {[%emt 0:00:01]} 37. Ke3 {[%emt 0:00:00]} Kc5 {[%emt 0:00:01]} 38. c3 {[%emt 0:00:00]} Nd6 {[%emt 0:00:00]} 39. h5 {[%emt 0:00:00]} Nc4+ {[%emt 0:00:03]} 40. Ke2 {[%emt 0:00:00]} Nxb2 {[%emt 0:00:00]} 41. hxg6 {[%emt 0:00:00]} hxg6 {[%emt 0:00:00]} 42. Nf1 {[%emt 0:00:00]} Nxa4 {[%emt 0:00:00]} 43. Kd2 {[%emt 0:00:00]} Nb6 {[%emt 0:00:00]} 44. Ne3 {[%emt 0:00:01]} Nc4+ {[%emt 0:00:00]} 45. Nxc4 {[%emt 0:00:06]} Kxc4 {[%emt 0:00:00]} 46. g4 {[%emt 0:00:02]} a4 {[%emt 0:00:00]} 47. Kc2 {[%emt 0:00:01]} a3 {[%emt 0:00:00]} 48. Kb1 {[%emt 0:00:09]} Kxc3 {[%emt 0:00:00]} 49. g5 {[%emt 0:00:03]} fxg5 {[%emt 0:00:00]} 50. Ka2 {[%emt 0:00:01]} Kd4 {[%emt 0:00:00]} 51. Kxa3 {[%emt 0:00:03]} Kxe4 {[%emt 0:00:00]} 52. Kb4 {[%emt 0:00:01]} Kf3 {[%emt 0:00:00]} 53. Kc4 {[%emt 0:00:01]} g4 {[%emt 0:00:00]} 54. Kc5 {[%emt 0:00:01]} g3 {[%emt 0:00:00]} 55. Kd6 {[%emt 0:00:01]} g2 {[%emt 0:00:00]} 56. Ke6 {[%emt 0:00:01]} g1=Q {[%emt 0:00:00]} 57. Kf6 {[%emt 0:00:05]} e4 {[%emt 0:00:00]} 58. Ke5 {[%emt 0:00:03]} e3 {[%emt 0:00:00]} 59. Kd4 {[%emt 0:00:01]} e2+ {[%emt 0:00:00]} 60. Kd3 {[%emt 0:00:01]} e1=N+ {[%emt 0:00:07]} 61. Kc4 {[%emt 0:00:02]} Qf1+ {[%emt 0:00:02]} 62. Kc5 {[%emt 0:00:02]} Nd3+ {[%emt 0:00:02]} 63. Kd6 {[%emt 0:00:02]} g5 {[%emt 0:00:01]} 64. Ke6 {[%emt 0:00:02]} c5 {[%emt 0:00:01]} 65. Kf5 {[%emt 0:00:01]} g4 {[%emt 0:00:01]} 66. Kg5 {[%emt 0:00:02]} g3 {[%emt 0:00:02]} 67. Kh5 {[%emt 0:00:03]} Qh3+ {[%emt 0:00:03]} 68. Kg5 {[%emt 0:00:02]} Qg4+ {[%emt 0:00:02]} 69. Kf6 {[%emt 0:00:03]} Qd4+ {[%emt 0:00:03]} 70. Kg5 {[%emt 0:00:04]} Qf4+ {[%emt 0:00:01]} 71. Kh5 {[%emt 0:00:02]} Qg4+ {[%emt 0:00:02]} 72. Kh6 {[%emt 0:00:02]} Kf4 {[%emt 0:00:03]} 73. Kh7 {[%emt 0:00:02]} Kf5 {[%emt 0:00:02]} 74. Kh8 {[%emt 0:00:02]} 0-1

[Event "Austria Championship Blitz 2024"]
[Site "Innsbruck"]
[Date "2024.06.01"]
[Round "7.12"]
[White "Neuschmied, Siegfried"]
[Black "Cafasso, Elia"]
[Result "0-1"]
[ECO "C84"]
[WhiteElo "2234"]
[BlackElo "2178"]
[Annotator "RC"]
[PlyCount "104"]
[EventDate "2024.06.01"]
[EventType "swiss"]
[EventCountry "AUT"]
[SourceTitle "playchess.com"]
[Source "ChessBase"]
[SourceQuality "1"]
[TimeControl "180+2"]

1. e4 {[%emt 0:00:01]} e5 {[%emt 0:00:00]} 2. Nf3 {[%emt 0:00:02]} Nc6 {[%emt 0:00:01]} 3. Bb5 {[%emt 0:00:01]} a6 {[%emt 0:00:02]} 4. Ba4 {[%emt 0:00:01]} Nf6 {[%emt 0:00:01]} 5. d3 {[%emt 0:00:02]} d6 {[%emt 0:00:04]} 6. c3 {[%emt 0:00:05]} Be7 {[%emt 0:00:03]} 7. O-O {[%emt 0:00:05]} O-O {[%emt 0:00:02]} 8. Re1 {[%emt 0:00:07]} b5 {[%emt 0:00:02]} 9. Bc2 {[%emt 0:00:01]} Re8 {[%emt 0:00:04]} 10. Nbd2 {[%emt 0:00:02]} Bf8 {[%emt 0:00:02]} 11. Nf1 {[%emt 0:00:02]} Ne7 {[%emt 0:00:01]} 12. Ng3 {[%emt 0:00:11]} Ng6 {[%emt 0:00:03]} 13. h3 {[%emt 0:00:03]} c5 {[%emt 0:00:02]} 14. d4 {[%emt 0:00:09]} cxd4 {[%emt 0:00:06]} 15. cxd4 {[%emt 0:00:01]} Bd7 {[%emt 0:00:12]} 16. Bb3 {[%emt 0:00:12]} h6 {[%emt 0:00:09]} 17. Be3 {[%emt 0:00:06]} Rc8 {[%emt 0:00:04]} 18. Qd2 {[%emt 0:00:03]} Bc6 {[%emt 0:00:30]} 19. d5 {[%emt 0:00:01]} Bd7 {[%emt 0:00:02]} 20. Rac1 {[%emt 0:00:08]} Rxc1 {[%emt 0:00:19]} 21. Rxc1 {[%emt 0:00:02]} Qb8 {[%emt 0:00:01]} 22. Qa5 {[%emt 0:02:21]} Rc8 {[%emt 0:00:32]} 23. Qxa6 {[%emt 0:00:00]} Rxc1+ {[%emt 0:00:02]} 24. Bxc1 {[%emt 0:00:00]} Qc7 {[%emt 0:00:05]} 25. Be3 {[%emt 0:00:00]} Nf4 {[%emt 0:00:06]} 26. Ne1 {[%emt 0:00:00]} Be7 {[%emt 0:00:07]} 27. Qb6 {[%emt 0:00:00]} Qc8 {[%emt 0:00:02]} 28. Qa5 {[%emt 0:00:00]} N6h5 {[%emt 0:00:10]} 29. Qd2 {[%emt 0:00:00]} Nxg3 {[%emt 0:00:10]} 30. fxg3 {[%emt 0:00:00]} Nh5 {[%emt 0:00:06]} 31. Kh2 {[%emt 0:00:00]} Nf6 {[%emt 0:00:00]} 32. Bc2 {[%emt 0:00:00]} Qa6 {[%emt 0:00:03]} 33. a3 {[%emt 0:00:00]} Bd8 {[%emt 0:00:02]} 34. Bd3 {[%emt 0:00:00]} Ba5 {[%emt 0:00:04]} 35. Qe2 {[%emt 0:00:00]} Qb7 {[%emt 0:00:04]} 36. Nc2 {[%emt 0:00:00]} h5 {[%emt 0:00:04]} 37. Bg5 {[%emt 0:00:00]} b4 {[%emt 0:00:20]} 38. Bxf6 {[%emt 0:00:00]} gxf6 {[%emt 0:00:00]} 39. Qxh5 {[%emt 0:00:00]} b3 {[%emt 0:00:03]} 40. Ne3 {[%emt 0:00:00]} Qb6 {[%emt 0:00:04]} 41. Ng4 {[%emt 0:00:00]} Qd8 {[%emt 0:00:10]} 42. Bc4 {[%emt 0:00:00]} Ba4 {[%emt 0:00:09]} 43. Qf5 {[%emt 0:00:00]} Bd2 {[%emt 0:00:04]} 44. Nxf6+ {[%emt 0:00:00]} Kf8 {[%emt 0:00:01]} 45. h4 {[%emt 0:00:00]} Bc1 {[%emt 0:00:02]} 46. h5 {[%emt 0:00:00]} Qb6 {[%emt 0:00:04]} 47. Nd7+ {[%emt 0:00:00]} Bxd7 48. Qxd7 {[%emt 0:00:00]} Qe3 {[%emt 0:00:05]} 49. Qxd6+ {[%emt 0:00:00]} Kg7 {[%emt 0:00:01]} 50. Qxe5+ {[%emt 0:00:01]} f6 {[%emt 0:00:01]} 51. h6+ {[%emt 0:00:02]} Qxh6+ {[%emt 0:00:01]} 52. Kg1 {[%emt 0:00:57]} fxe5 {[%emt 0:00:14]} 0-1